[Event "IV Elllobregat Open Chess Tmnt"]
[Site "Sant Boi de Llobregat, Spain"]
[Date "2023.12.01"]
[Round "2.8"]
[White "Malek, Jan"]
[Black "Yuffa, Daniil"]
[Result "0-1"]
[TimeControl "90min/40moves + 15min/end + 30sec from move 1"]
[WhiteFideId "21864080"]
[BlackFideId "24131423"]
[WhiteElo "2434"]
[BlackElo "2600"]

1. d4 {[%clk 01:30:58]} {[%emt 00:00:02]} d5 {[%clk 01:30:33]} {[%emt
00:00:27]} 2. c4 {[%clk 01:31:19]} {[%emt 00:00:10]} c6 {[%clk 01:30:56]}
{[%emt 00:00:07]} 3. Nc3 {[%clk 01:31:38]} {[%emt 00:00:11]} Nf6 {[%clk
01:31:16]} {[%emt 00:00:09]} 4. e3 {[%clk 01:31:29]} {[%emt 00:00:39]} a6
{[%clk 01:31:20]} {[%emt 00:00:26]} 5. Nf3 {[%clk 01:31:48]} {[%emt 00:00:10]}
b5 {[%clk 01:30:55]} {[%emt 00:00:57]} 6. b3 {[%clk 01:31:54]} {[%emt
00:00:24]} Bg4 {[%clk 01:31:12]} {[%emt 00:00:12]} 7. a4 {[%clk 01:31:48]}
{[%emt 00:00:36]} bxc4 {[%clk 01:31:35]} {[%emt 00:00:08]} 8. bxc4 {[%clk
01:32:12]} {[%emt 00:00:06]} Nbd7 {[%clk 01:31:21]} {[%emt 00:00:43]} 9. h3
{[%clk 01:25:52]} {[%emt 00:06:50]} Bxf3 {[%clk 01:30:46]} {[%emt 00:01:05]} 10.
Qxf3 {[%clk 01:26:11]} {[%emt 00:00:11]} e5 {[%clk 01:24:15]} {[%emt 00:07:01]}
11. c5 {[%clk 01:14:22]} {[%emt 00:12:20]} g6 {[%clk 01:21:31]} {[%emt
00:03:14]} 12. Be2 {[%clk 01:07:42]} {[%emt 00:07:09]} Bg7 {[%clk 01:19:22]}
{[%emt 00:02:39]} 13. O-O {[%clk 01:07:27]} {[%emt 00:00:45]} O-O {[%clk
01:19:44]} {[%emt 00:00:08]} 14. Rd1 {[%clk 01:02:09]} {[%emt 00:05:47]} Re8
{[%clk 01:17:53]} {[%emt 00:02:22]} 15. a5 {[%clk 00:47:32]} {[%emt 00:15:06]}
Ra7 {[%clk 01:09:23]} {[%emt 00:09:00]} 16. Ra2 {[%clk 00:45:12]} {[%emt
00:02:51]} h5 {[%clk 01:04:59]} {[%emt 00:04:53]} 17. Qg3 {[%clk 00:35:20]}
{[%emt 00:10:22]} Nh7 {[%clk 01:01:58]} {[%emt 00:03:31]} 18. Ra3 {[%clk
00:31:04]} {[%emt 00:04:46]} Nhf8 {[%clk 00:51:40]} {[%emt 00:10:48]} 19. f4
{[%clk 00:23:10]} {[%emt 00:08:23]} exd4 {[%clk 00:49:12]} {[%emt 00:02:57]} 20.
exd4 {[%clk 00:23:35]} {[%emt 00:00:06]} Ne6 {[%clk 00:45:05]} {[%emt
00:04:38]} 21. Qf2 {[%clk 00:23:57]} {[%emt 00:00:08]} Qf6 {[%clk 00:35:02]}
{[%emt 00:10:33]} 22. Be3 {[%clk 00:23:43]} {[%emt 00:00:44]} Nc7 {[%clk
00:29:40]} {[%emt 00:05:52]} 23. Na2 {[%clk 00:17:00]} {[%emt 00:07:13]} Rb7
{[%clk 00:28:42]} {[%emt 00:01:27]} 24. Bd3 {[%clk 00:12:59]} {[%emt 00:04:30]}
Qe7 {[%clk 00:23:29]} {[%emt 00:05:44]} 25. Bd2 {[%clk 00:12:22]} {[%emt
00:01:08]} Ne6 {[%clk 00:15:47]} {[%emt 00:08:12]} 26. Bc3 {[%clk 00:10:36]}
{[%emt 00:02:15]} Nf6 {[%clk 00:16:10]} {[%emt 00:00:07]} 27. Kh1 {[%clk
00:03:12]} {[%emt 00:07:55]} Ne4 {[%clk 00:12:27]} {[%emt 00:04:13]} 28. Bxe4
{[%clk 00:03:40]} {[%emt 00:00:02]} dxe4 {[%clk 00:12:55]} {[%emt 00:00:01]} 29.
Nb4 {[%clk 00:04:09]} Nxd4 {[%clk 00:09:38]} {[%emt 00:03:47]} 30. Rxd4 {[%clk
00:01:12]} {[%emt 00:03:27]} e3 {[%clk 00:08:47]} {[%emt 00:01:21]} 31. Qe1
{[%clk 00:00:57]} {[%emt 00:00:45]} Qxc5 {[%clk 00:07:02]} {[%emt 00:02:15]} 32.
Rd3 {[%clk 00:00:47]} {[%emt 00:00:40]} Bxc3 {[%clk 00:06:17]} {[%emt
00:01:15]} 33. Raxc3 {[%clk 00:00:42]} {[%emt 00:00:36]} Qxb4 {[%clk 00:06:38]}
{[%emt 00:00:09]} 34. Rxe3 {[%clk 00:00:52]} {[%emt 00:00:19]} Rxe3 {[%clk
00:06:17]} {[%emt 00:00:51]} 35. Rxe3 {[%clk 00:00:48]} {[%emt 00:00:34]} Qxe1+
{[%clk 00:05:41]} {[%emt 00:01:07]} 36. Rxe1 {[%clk 00:01:17]} {[%emt
00:00:01]} Rb5 {[%clk 00:05:13]} {[%emt 00:00:58]} 37. Re8+ {[%clk 00:00:31]}
{[%emt 00:01:15]} Kg7 {[%clk 00:05:40]} {[%emt 00:00:03]} 38. Rc8 {[%clk
00:00:54]} {[%emt 00:00:07]} c5 {[%emt 00:00:28]} 39. g3 {[%clk 00:01:17]} Rxa5
{[%clk 00:05:52]} {[%emt 00:00:27]} 40. Rc6 {[%clk 00:16:32]} {[%emt 00:00:14]}
Kf8 {[%clk 00:18:38]} {[%emt 00:02:44]} 41. Kg2 {[%clk 00:16:29]} {[%emt
00:00:33]} Ke7 {[%clk 00:18:12]} {[%emt 00:00:56]} 42. g4 {[%clk 00:07:55]}
{[%emt 00:09:04]} h4 {[%clk 00:14:58]} {[%emt 00:03:43]} 43. g5 {[%clk
00:08:03]} {[%emt 00:00:22]} Ra3 {[%clk 00:12:12]} {[%emt 00:03:17]} 44. Rxc5
{[%clk 00:08:07]} {[%emt 00:00:26]} a5 {[%clk 00:10:56]} {[%emt 00:01:46]} 45.
Rc7+ {[%clk 00:05:49]} {[%emt 00:02:48]} Ke6 {[%clk 00:11:04]} {[%emt
00:00:22]} 46. Rc6+ {[%clk 00:06:17]} {[%emt 00:00:02]} Kd5 {[%clk 00:05:25]}
{[%emt 00:06:09]} 47. Rf6 {[%clk 00:05:57]} {[%emt 00:00:49]} Rg3+ {[%clk
00:04:10]} {[%emt 00:01:46]} 48. Kh2 {[%clk 00:05:10]} {[%emt 00:01:18]} a4
{[%clk 00:04:32]} {[%emt 00:00:08]} 49. Rxf7 {[%clk 00:05:08]} {[%emt
00:00:32]} a3 {[%clk 00:04:10]} {[%emt 00:00:52]} 50. Rf6 {[%clk 00:05:30]}
{[%emt 00:00:08]} Rb3 {[%clk 00:03:51]} {[%emt 00:00:49]} 51. Kg2 {[%clk
00:04:30]} {[%emt 00:01:29]} Ke4 {[%clk 00:04:09]} {[%emt 00:00:12]} 52. Re6+
{[%clk 00:04:21]} {[%emt 00:00:40]} Kxf4 {[%clk 00:04:28]} {[%emt 00:00:11]} 53.
Rf6+ {[%clk 00:04:46]} {[%emt 00:00:05]} Kxg5 {[%clk 00:04:34]} {[%emt
00:00:24]} 54. Rf8 {[%clk 00:05:06]} {[%emt 00:00:09]} Rb2+ {[%clk 00:04:49]}
{[%emt 00:00:16]} 0-1

[Event "IV Elllobregat Open Chess Tmnt"]
[Site "Sant Boi de Llobregat, Spain"]
[Date "2023.12.01"]
[Round "2.9"]
[White "Injac, Teodora"]
[Black "Kozak, Adam"]
[Result "0-1"]
[TimeControl "90min/40moves + 15min/end + 30sec from move 1"]
[WhiteFideId "932400"]
[BlackFideId "753246"]
[WhiteElo "2431"]
[BlackElo "2578"]

1. Nf3 {[%clk 01:30:57]} {[%emt 00:00:02]} c5 {[%clk 01:28:02]} {[%emt
00:02:58]} 2. c4 {[%clk 01:30:50]} {[%emt 00:00:37]} Nc6 {[%clk 01:28:15]}
{[%emt 00:00:16]} 3. Nc3 {[%clk 01:31:04]} {[%emt 00:00:17]} g6 {[%clk
01:25:58]} {[%emt 00:02:46]} 4. e3 {[%clk 01:30:12]} {[%emt 00:01:22]} Bg7
{[%clk 01:26:20]} {[%emt 00:00:08]} 5. d4 {[%clk 01:28:21]} {[%emt 00:02:21]}
d6 {[%clk 01:26:43]} {[%emt 00:00:07]} 6. Be2 {[%clk 01:26:06]} {[%emt
00:02:44]} e6 {[%clk 01:27:06]} {[%emt 00:00:08]} 7. O-O {[%clk 01:25:10]}
{[%emt 00:01:25]} cxd4 {[%clk 01:16:41]} {[%emt 00:10:55]} 8. exd4 {[%clk
01:25:06]} {[%emt 00:00:34]} d5 {[%clk 01:17:06]} {[%emt 00:00:06]} 9. cxd5
{[%clk 01:17:39]} {[%emt 00:07:56]} exd5 {[%clk 01:17:29]} {[%emt 00:00:07]} 10.
Bb5 {[%clk 01:17:08]} {[%emt 00:01:01]} Nge7 {[%clk 01:17:36]} {[%emt
00:00:23]} 11. Bxc6+ {[%clk 01:15:58]} {[%emt 00:01:41]} bxc6 {[%clk 01:04:34]}
{[%emt 00:13:32]} 12. h3 {[%clk 01:01:46]} {[%emt 00:14:41]} O-O {[%clk
01:04:18]} {[%emt 00:00:44]} 13. Na4 {[%clk 01:01:32]} {[%emt 00:00:45]} Qd6
{[%clk 00:52:23]} {[%emt 00:12:25]} 14. Re1 {[%clk 00:43:56]} {[%emt 00:18:06]}
Nf5 {[%clk 00:45:18]} {[%emt 00:07:35]} 15. a3 {[%clk 00:32:30]} {[%emt
00:11:56]} Qc7 {[%clk 00:18:50]} {[%emt 00:26:59]} 16. Bd2 {[%clk 00:18:43]}
{[%emt 00:14:17]} a5 {[%clk 00:14:43]} {[%emt 00:04:37]} 17. Rc1 {[%clk
00:11:05]} {[%emt 00:08:07]} Ba6 {[%clk 00:04:45]} {[%emt 00:10:28]} 18. Nc5
{[%clk 00:05:20]} {[%emt 00:06:15]} Nxd4 {[%clk 00:03:44]} {[%emt 00:01:30]} 19.
Nxd4 {[%clk 00:05:20]} {[%emt 00:00:30]} Bxd4 {[%clk 00:04:12]} {[%emt
00:00:03]} 20. Nxa6 {[%clk 00:05:06]} {[%emt 00:00:45]} Qb6 {[%clk 00:02:33]}
{[%emt 00:02:09]} 21. Nc7 {[%clk 00:00:36]} {[%emt 00:05:00]} Bxf2+ {[%clk
00:02:01]} {[%emt 00:01:01]} 22. Kh1 {[%clk 00:01:05]} {[%emt 00:00:01]} Qxc7
{[%clk 00:02:23]} {[%emt 00:00:07]} 23. Re2 {[%clk 00:00:37]} {[%emt 00:00:58]}
Bg3 {[%clk 00:01:58]} {[%emt 00:00:55]} 24. Bc3 {[%clk 00:00:38]} {[%emt
00:00:29]} f6 {[%clk 00:01:32]} {[%emt 00:00:56]} 25. Re6 {[%clk 00:00:34]}
{[%emt 00:00:35]} Rae8 {[%clk 00:00:52]} {[%emt 00:01:10]} 26. Qe2 {[%clk
00:00:33]} {[%emt 00:00:32]} Qd7 {[%clk 00:00:54]} {[%emt 00:00:28]} 27. Rxe8
{[%clk 00:01:01]} {[%emt 00:00:01]} Rxe8 {[%clk 00:01:18]} {[%emt 00:00:06]} 28.
Qc2 {[%clk 00:00:38]} {[%emt 00:00:53]} Bc7 {[%clk 00:01:14]} {[%emt 00:00:35]}
0-1

[Event "IV Elllobregat Open Chess Tmnt"]
[Site "Sant Boi de Llobregat, Spain"]
[Date "2023.12.01"]
[Round "2.10"]
[White "Aditya, Mittal"]
[Black "Narciso Dublan, Marc"]
[Result "1-0"]
[TimeControl "90min/40moves + 15min/end + 30sec from move 1"]
[WhiteFideId "35042025"]
[BlackFideId "2201500"]
[WhiteElo "2577"]
[BlackElo "2413"]

1. e4 {[%clk 01:30:58]} {[%emt 00:00:02]} e6 {[%clk 01:30:39]} {[%emt
00:00:21]} 2. d4 {[%clk 01:31:27]} {[%emt 00:00:02]} d5 {[%clk 01:30:57]}
{[%emt 00:00:11]} 3. Nc3 {[%clk 01:31:55]} {[%emt 00:00:02]} Bb4 {[%clk
01:31:02]} {[%emt 00:00:25]} 4. e5 {[%clk 01:32:24]} {[%emt 00:00:02]} c5
{[%clk 01:30:33]} {[%emt 00:00:59]} 5. a3 {[%clk 01:32:53]} {[%emt 00:00:02]}
Bxc3+ {[%clk 01:30:39]} {[%emt 00:00:24]} 6. bxc3 {[%clk 01:33:21]} {[%emt
00:00:02]} Nc6 {[%clk 01:30:24]} {[%emt 00:00:44]} 7. Qg4 {[%clk 01:33:49]}
{[%emt 00:00:02]} g6 {[%clk 01:30:34]} {[%emt 00:00:20]} 8. Qf4 {[%clk
01:34:17]} {[%emt 00:00:02]} Qa5 {[%clk 01:24:24]} {[%emt 00:06:39]} 9. Bd2
{[%clk 01:34:37]} {[%emt 00:00:10]} c4 {[%clk 01:24:22]} {[%emt 00:00:32]} 10.
a4 {[%clk 01:35:05]} {[%emt 00:00:03]} Bd7 {[%clk 01:23:20]} {[%emt 00:01:31]}
11. h4 {[%clk 01:35:33]} {[%emt 00:00:02]} h6 {[%clk 01:23:15]} {[%emt
00:00:35]} 12. Ne2 {[%clk 01:36:00]} {[%emt 00:00:04]} Rh7 {[%clk 01:21:36]}
{[%emt 00:02:08]} 13. g4 {[%clk 01:36:27]} {[%emt 00:00:04]} O-O-O {[%clk
01:21:05]} {[%emt 00:01:01]} 14. Bg2 {[%clk 01:36:55]} {[%emt 00:00:02]} Rf8
{[%clk 00:56:28]} {[%emt 00:25:06]} 15. h5 {[%clk 01:37:24]} {[%emt 00:00:03]}
g5 {[%clk 00:55:27]} {[%emt 00:01:30]} 16. Qg3 {[%clk 01:37:00]} {[%emt
00:00:55]} Nge7 {[%clk 00:45:51]} {[%emt 00:10:06]} 17. O-O {[%clk 01:29:43]}
{[%emt 00:07:47]} Rg8 {[%clk 00:45:21]} {[%emt 00:01:00]} 18. Bc1 {[%clk
01:22:55]} {[%emt 00:07:19]} Kb8 {[%clk 00:36:21]} {[%emt 00:09:29]} 19. f4
{[%clk 01:17:54]} {[%emt 00:05:32]} gxf4 {[%clk 00:36:03]} {[%emt 00:00:48]} 20.
Rxf4 {[%clk 01:18:10]} {[%emt 00:00:13]} Rgg7 {[%clk 00:35:06]} {[%emt
00:01:27]} 21. Rf6 {[%clk 01:02:21]} {[%emt 00:16:20]} Ng8 {[%clk 00:34:28]}
{[%emt 00:01:08]} 22. Ba3 {[%clk 01:02:21]} {[%emt 00:00:30]} Ka8 {[%clk
00:33:12]} {[%emt 00:01:45]} 23. Rff1 {[%clk 01:01:44]} {[%emt 00:01:07]} Qd8
{[%clk 00:31:50]} {[%emt 00:01:53]} 24. Rf4 {[%clk 00:45:22]} {[%emt 00:16:52]}
a5 {[%clk 00:23:23]} {[%emt 00:08:57]} 25. Qf2 {[%clk 00:43:43]} {[%emt
00:02:09]} Na7 {[%clk 00:23:04]} {[%emt 00:00:49]} 26. Ng3 {[%clk 00:39:05]}
{[%emt 00:05:07]} Bxa4 {[%clk 00:18:40]} {[%emt 00:04:54]} 27. Nf1 {[%clk
00:38:24]} {[%emt 00:01:11]} Bc6 {[%clk 00:18:05]} {[%emt 00:01:05]} 28. Ne3
{[%clk 00:38:45]} {[%emt 00:00:09]} b6 {[%clk 00:14:17]} {[%emt 00:04:17]} 29.
Rb1 {[%clk 00:36:29]} {[%emt 00:02:47]} Ne7 {[%clk 00:08:53]} {[%emt 00:05:54]}
30. Qf1 {[%clk 00:31:06]} {[%emt 00:05:53]} Nec8 {[%clk 00:03:39]} {[%emt
00:05:44]} 31. Rf6 {[%clk 00:29:46]} {[%emt 00:01:51]} b5 {[%clk 00:03:18]}
{[%emt 00:00:51]} 32. Qf4 {[%clk 00:26:14]} {[%emt 00:04:01]} Nb6 {[%clk
00:03:39]} {[%emt 00:00:09]} 33. Rxh6 {[%clk 00:25:26]} {[%emt 00:01:18]} Na4
{[%clk 00:03:50]} {[%emt 00:00:20]} 34. Qf6 {[%clk 00:24:55]} {[%emt 00:01:01]}
Qg8 {[%clk 00:02:19]} {[%emt 00:02:00]} 35. Rxh7 {[%clk 00:23:17]} {[%emt
00:02:09]} Rxh7 {[%clk 00:02:40]} {[%emt 00:00:09]} 36. Ra1 {[%clk 00:22:04]}
{[%emt 00:01:43]} Nxc3 {[%clk 00:00:40]} {[%emt 00:02:30]} 37. Bd6 {[%clk
00:20:59]} {[%emt 00:01:35]} a4 {[%clk 00:00:50]} {[%emt 00:00:21]} 38. Kf2
{[%clk 00:21:04]} {[%emt 00:00:25]} Qc8 {[%clk 00:00:38]} {[%emt 00:00:43]} 39.
h6 {[%clk 00:20:12]} {[%emt 00:01:21]} Bb7 {[%clk 00:00:48]} {[%emt 00:00:20]}
40. Bb4 {[%clk 00:31:04]} {[%emt 00:04:38]} Ne4+ {[%clk 00:15:59]} {[%emt
00:00:18]} 41. Bxe4 {[%clk 00:31:29]} {[%emt 00:00:04]} dxe4 {[%clk 00:16:22]}
{[%emt 00:00:08]} 42. g5 {[%clk 00:29:30]} {[%emt 00:02:29]} Nc6 {[%clk
00:08:46]} {[%emt 00:08:05]} 43. Bc5 {[%clk 00:29:27]} {[%emt 00:00:33]} Nb8
{[%clk 00:06:39]} {[%emt 00:02:37]} 44. Qe7 {[%clk 00:24:16]} {[%emt 00:05:41]}
Qg8 {[%clk 00:02:40]} {[%emt 00:04:28]} 45. Nxc4 {[%clk 00:23:16]} {[%emt
00:01:31]} e3+ {[%clk 00:02:55]} {[%emt 00:00:15]} 46. Ke2 {[%clk 00:21:38]}
{[%emt 00:02:09]} 1-0

[Event "IV Elllobregat Open Chess Tmnt"]
[Site "Sant Boi de Llobregat, Spain"]
[Date "2023.12.01"]
[Round "2.11"]
[White "Bronstein, Or"]
[Black "Laurusas, Tomas"]
[Result "1/2-1/2"]
[TimeControl "90min/40moves + 15min/end + 30sec from move 1"]
[WhiteFideId "2815770"]
[BlackFideId "12803731"]
[WhiteElo "2428"]
[BlackElo "2566"]

1. d4 {[%clk 01:25:06]} {[%emt 00:05:53]} Nf6 {[%clk 01:30:50]} {[%emt
00:00:10]} 2. c4 {[%clk 01:24:46]} {[%emt 00:00:50]} c6 {[%clk 01:31:15]}
{[%emt 00:00:05]} 3. Nf3 {[%clk 01:25:03]} {[%emt 00:00:13]} d5 {[%clk
01:31:35]} {[%emt 00:00:09]} 4. e3 {[%clk 01:25:27]} {[%emt 00:00:06]} Bf5
{[%clk 01:31:39]} {[%emt 00:00:26]} 5. Nc3 {[%clk 01:25:48]} {[%emt 00:00:09]}
e6 {[%clk 01:31:58]} {[%emt 00:00:11]} 6. Nh4 {[%clk 01:26:14]} {[%emt
00:00:05]} Be4 {[%clk 01:32:16]} {[%emt 00:00:13]} 7. f3 {[%clk 01:26:35]}
{[%emt 00:00:08]} Bg6 {[%clk 01:32:39]} {[%emt 00:00:07]} 8. Bd2 {[%clk
01:26:59]} {[%emt 00:00:06]} Be7 {[%clk 01:32:32]} {[%emt 00:00:37]} 9. Nxg6
{[%clk 01:27:16]} {[%emt 00:00:14]} hxg6 {[%clk 01:32:54]} {[%emt 00:00:08]} 10.
Qb3 {[%clk 01:25:30]} {[%emt 00:02:16]} Qb6 {[%clk 01:30:49]} {[%emt 00:02:35]}
11. O-O-O {[%clk 01:18:29]} {[%emt 00:07:30]} Qxb3 {[%clk 01:30:23]} {[%emt
00:00:57]} 12. axb3 {[%clk 01:18:58]} {[%emt 00:00:01]} Nbd7 {[%clk 01:30:22]}
{[%emt 00:00:31]} 13. Kc2 {[%clk 01:15:19]} {[%emt 00:04:08]} O-O {[%clk
01:26:42]} {[%emt 00:04:10]} 14. h4 {[%clk 01:00:58]} {[%emt 00:14:52]} Rac8
{[%clk 01:22:44]} {[%emt 00:04:28]} 15. g4 {[%clk 00:51:55]} {[%emt 00:09:33]}
Rfd8 {[%clk 01:22:01]} {[%emt 00:01:13]} 16. Ra1 {[%clk 00:45:58]} {[%emt
00:06:27]} a6 {[%clk 01:22:09]} {[%emt 00:00:22]} 17. c5 {[%clk 00:42:56]}
{[%emt 00:03:32]} Ne8 {[%clk 01:13:18]} {[%emt 00:09:21]} 18. f4 {[%clk
00:33:19]} {[%emt 00:10:07]} f5 {[%clk 01:09:38]} {[%emt 00:04:10]} 19. g5
{[%clk 00:30:24]} {[%emt 00:03:24]} Kf7 {[%clk 01:09:34]} {[%emt 00:00:35]} 20.
Be2 {[%clk 00:30:40]} {[%emt 00:00:15]} Nc7 {[%clk 01:09:49]} {[%emt 00:00:14]}
21. Rh3 {[%clk 00:29:05]} {[%emt 00:02:04]} Rh8 {[%clk 01:05:56]} {[%emt
00:04:24]} 22. Rah1 {[%clk 00:29:02]} {[%emt 00:00:33]} Rh5 {[%clk 01:01:45]}
{[%emt 00:04:41]} 23. Bxh5 {[%clk 00:16:01]} {[%emt 00:13:31]} gxh5 {[%clk
01:02:05]} {[%emt 00:00:10]} 24. Ne2 {[%clk 00:16:13]} {[%emt 00:00:18]} g6
{[%clk 01:01:35]} {[%emt 00:01:00]} 25. Ba5 {[%clk 00:16:33]} {[%emt 00:00:11]}
Nb5 {[%clk 01:00:13]} {[%emt 00:01:51]} 26. Ra1 {[%clk 00:16:15]} {[%emt
00:00:48]} Ke8 {[%clk 01:00:11]} {[%emt 00:00:33]} 27. Rhh1 {[%clk 00:16:25]}
{[%emt 00:00:19]} Kf7 {[%clk 01:00:10]} {[%emt 00:00:30]} 28. Rhc1 {[%clk
00:15:50]} {[%emt 00:01:06]} Ke8 {[%clk 01:00:22]} {[%emt 00:00:18]} 29. Kd3
{[%clk 00:15:45]} {[%emt 00:00:35]} Bd8 {[%clk 00:58:51]} {[%emt 00:02:01]} 30.
Be1 {[%clk 00:10:14]} {[%emt 00:06:01]} Bc7 {[%clk 00:58:39]} {[%emt 00:00:43]}
31. Ra4 {[%clk 00:09:48]} {[%emt 00:00:56]} Kd8 {[%clk 00:58:27]} {[%emt
00:00:41]} 32. Rca1 {[%clk 00:09:22]} {[%emt 00:00:57]} Nb8 {[%clk 00:58:20]}
{[%emt 00:00:37]} 33. Nc1 {[%clk 00:09:03]} {[%emt 00:00:49]} Nd7 {[%clk
00:58:14]} {[%emt 00:00:36]} 34. Kc2 {[%clk 00:09:14]} {[%emt 00:00:19]} Nb8
{[%clk 00:57:57]} {[%emt 00:00:47]} 35. Nd3 {[%clk 00:09:43]} {[%emt 00:00:02]}
Nd7 {[%clk 00:58:08]} {[%emt 00:00:18]} 36. Bc3 {[%clk 00:09:40]} {[%emt
00:00:33]} Ke7 {[%clk 00:58:20]} {[%emt 00:00:18]} 37. Ba5 {[%clk 00:08:03]}
{[%emt 00:02:07]} Bxa5 {[%clk 00:56:47]} {[%emt 00:02:03]} 38. Rxa5 {[%clk
00:08:29]} {[%emt 00:00:05]} Kd8 {[%clk 00:56:56]} {[%emt 00:00:21]} 39. R5a2
{[%clk 00:07:41]} {[%emt 00:01:18]} Kc7 {[%clk 00:57:09]} {[%emt 00:00:17]} 40.
Nc1 {[%clk 00:21:45]} {[%emt 00:01:26]} Rg8 {[%clk 01:12:21]} {[%emt 00:00:18]}
41. Ne2 {[%clk 00:21:56]} {[%emt 00:00:18]} Rh8 {[%clk 01:11:51]} {[%emt
00:01:00]} 42. Nc3 {[%clk 00:22:20]} {[%emt 00:00:07]} Nb8 {[%clk 01:11:42]}
{[%emt 00:00:39]} 43. Kd2 {[%clk 00:22:19]} {[%emt 00:00:31]} Rd8 {[%clk
01:12:00]} {[%emt 00:00:12]} 44. Na4 {[%clk 00:19:21]} {[%emt 00:03:28]} Nd7
{[%clk 01:12:16]} {[%emt 00:00:13]} 45. Rc1 {[%clk 00:19:43]} {[%emt 00:00:09]}
Rg8 {[%clk 01:12:07]} {[%emt 00:00:39]} 46. Nc3 {[%clk 00:19:58]} {[%emt
00:00:15]} Na7 {[%clk 01:12:16]} {[%emt 00:00:21]} 47. Raa1 {[%clk 00:17:32]}
{[%emt 00:02:56]} Rd8 {[%clk 01:11:54]} {[%emt 00:00:51]} 48. Na2 {[%clk
00:17:55]} {[%emt 00:00:08]} Nb5 {[%clk 01:12:15]} {[%emt 00:00:09]} 49. Nb4
{[%clk 00:18:18]} {[%emt 00:00:07]} Rf8 {[%clk 01:12:01]} {[%emt 00:00:44]} 50.
Ra4 {[%clk 00:17:50]} {[%emt 00:00:58]} Rd8 {[%clk 01:12:17]} {[%emt 00:00:14]}
51. Nd3 {[%clk 00:18:01]} {[%emt 00:00:19]} Rf8 {[%clk 01:12:34]} {[%emt
00:00:13]} 52. Rca1 {[%clk 00:17:45]} {[%emt 00:00:47]} 1/2-1/2

[Event "IV Elllobregat Open Chess Tmnt"]
[Site "Sant Boi de Llobregat, Spain"]
[Date "2023.12.01"]
[Round "2.12"]
[White "Asadli, Vugar"]
[Black "Abdurakhmonov, Mukhammadali"]
[Result "1-0"]
[TimeControl "90min/40moves + 15min/end + 30sec from move 1"]
[WhiteFideId "13405764"]
[BlackFideId "14207346"]
[WhiteElo "2562"]
[BlackElo "2409"]

1. e4 {[%clk 01:30:43]} {[%emt 00:00:15]} c5 {[%clk 01:30:49]} {[%emt
00:00:11]} 2. Nf3 {[%clk 01:31:07]} {[%emt 00:00:07]} Nc6 {[%clk 01:31:14]}
{[%emt 00:00:06]} 3. d4 {[%clk 01:31:04]} {[%emt 00:00:32]} cxd4 {[%clk
01:31:37]} {[%emt 00:00:07]} 4. Nxd4 {[%clk 01:31:31]} {[%emt 00:00:03]} e6
{[%clk 01:29:24]} {[%emt 00:02:43]} 5. Nc3 {[%clk 01:29:02]} {[%emt 00:03:00]}
Qc7 {[%clk 01:29:47]} {[%emt 00:00:07]} 6. Be3 {[%clk 01:29:19]} {[%emt
00:00:12]} Nf6 {[%clk 01:29:42]} {[%emt 00:00:35]} 7. Ndb5 {[%clk 01:24:51]}
{[%emt 00:04:59]} Qb8 {[%clk 01:29:36]} {[%emt 00:00:35]} 8. f4 {[%clk
01:24:49]} {[%emt 00:00:32]} a6 {[%emt 00:10:22]} 9. e5 {[%clk 01:17:28]}
{[%emt 00:01:13]} axb5 {[%clk 01:19:20]} {[%emt 00:07:32]} 10. exf6 {[%clk
01:17:27]} {[%emt 00:00:31]} gxf6 {[%clk 01:19:25]} {[%emt 00:00:25]} 11. Nxb5
{[%clk 01:17:49]} {[%emt 00:00:08]} b6 {[%clk 01:18:18]} {[%emt 00:01:37]} 12.
Be2 {[%clk 01:13:02]} {[%emt 00:05:17]} Bc5 {[%clk 01:10:26]} {[%emt 00:08:21]}
13. Qd2 {[%clk 01:09:00]} {[%emt 00:04:33]} Ba6 {[%clk 00:59:44]} {[%emt
00:11:11]} 14. O-O {[%clk 01:07:52]} {[%emt 00:01:38]} d5 {[%clk 00:56:15]}
{[%emt 00:04:00]} 15. Kh1 {[%clk 01:01:36]} {[%emt 00:06:46]} Ne7 {[%clk
00:47:57]} {[%emt 00:08:48]} 16. Qc3 {[%clk 00:55:47]} {[%emt 00:06:18]} Bxe3
{[%clk 00:39:53]} {[%emt 00:08:34]} 17. Nc7+ {[%clk 00:52:47]} {[%emt
00:03:30]} Kd8 {[%clk 00:39:36]} {[%emt 00:00:47]} 18. Nxa6 {[%clk 00:51:07]}
{[%emt 00:02:11]} d4 {[%emt 00:02:45]} 19. Qa3 {[%clk 00:41:32]} {[%emt
00:07:44]} Qa7 {[%clk 00:37:45]} {[%emt 00:02:27]} 20. f5 {[%emt 00:02:04]} Nd5
{[%clk 00:35:01]} {[%emt 00:02:44]} 21. fxe6 {[%clk 00:39:34]} {[%emt
00:01:24]} fxe6 {[%clk 00:35:25]} {[%emt 00:00:06]} 22. c4 {[%clk 00:38:36]}
{[%emt 00:01:28]} Nf4 {[%emt 00:14:41]} 23. Qd6+ {[%clk 00:32:21]} {[%emt
00:00:37]} Qd7 {[%clk 00:27:40]} {[%emt 00:00:11]} 24. Qxb6+ {[%clk 00:32:29]}
{[%emt 00:00:23]} Ke7 {[%clk 00:27:59]} {[%emt 00:00:10]} 25. Bf3 {[%clk
00:30:48]} {[%emt 00:02:11]} Rac8 {[%clk 00:27:25]} {[%emt 00:01:04]} 26. c5
{[%clk 00:30:10]} {[%emt 00:01:09]} Nd3 {[%clk 00:22:52]} {[%emt 00:05:03]} 27.
c6 {[%clk 00:26:40]} {[%emt 00:04:00]} Qd6 {[%clk 00:22:41]} {[%emt 00:00:36]}
28. Qb7+ {[%clk 00:26:37]} {[%emt 00:00:38]} Kd8 {[%emt 00:00:21]} 29. Qg7
{[%clk 00:26:35]} {[%emt 00:00:15]} Re8 {[%clk 00:22:09]} {[%emt 00:01:27]} 30.
Rad1 {[%clk 00:25:15]} {[%emt 00:01:50]} 1-0